Organisation Name,Department where exp. Incurred,Service Category Label,Supplier (Beneficiary),Purpose of Expenditure,Procurement (Merchant) Category,Purchase Date,Settlement Date,Transaction Number,Net Amount (�)
Stockport MBC,Corporate and Support Services,Central Support Costs,EASILY LTD,Information and Communications Technology,Information Communication Technology  ,01.02.2021,16.02.2021,GPC01210000001,7.50
Stockport MBC,Corporate and Support Services,Central Support Costs,MIRO.COM,Information and Communications Technology,Information Communication Technology  ,24.01.2021,16.02.2021,GPC01210000002,115.72
Stockport MBC,Corporate and Support Services,Central Support Costs,GITHUB,Information and Communications Technology,Information Communication Technology  ,14.01.2021,16.02.2021,GPC01210000003,75.59
Stockport MBC,Corporate and Support Services,Central Support Costs,AUTH0.COM,Information and Communications Technology,Information Communication Technology  ,13.01.2021,16.02.2021,GPC01210000004,9.16
Stockport MBC,Corporate and Support Services,Central Support Costs,ATLASSIAN,Information and Communications Technology,Information Communication Technology  ,08.01.2021,16.02.2021,GPC01210000005,967.33
Stockport MBC,Corporate and Support Services,Central Support Costs,WWW.CONTENTFUL.COM,Information and Communications Technology,Information Communication Technology  ,09.01.2021,16.02.2021,GPC01210000006,740.29
Stockport MBC,Corporate and Support Services,Central Support Costs,FASTHOSTS INTERNET,Information and Communications Technology,Information Communication Technology  ,05.01.2021,16.02.2021,GPC01210000007,25.18
Stockport MBC,Corporate and Support Services,Central Support Costs,AUTH0.COM,Information and Communications Technology,Information Communication Technology  ,05.01.2021,16.02.2021,GPC01210000008,151.94
Stockport MBC,Corporate and Support Services,Central Support Costs,AWS EMEA,Information and Communications Technology,Information Communication Technology  ,03.01.2021,16.02.2021,GPC01210000009,"1,074.21"
Stockport MBC,Services to People,Childrens & Educational Services,WM MORRISONS STORE,COVID 19,COVID 19,14.01.2021,16.02.2021,GPC01210000010,8.00
Stockport MBC,Corporate and Support Services,Central Support Costs,FACEBK  UEA3QZEMG2,Office Expenses,Facilities & Management Services  ,31.01.2021,16.02.2021,GPC01210000011,305.12
Stockport MBC,Corporate and Support Services,Central Support Costs,SITEGROUND HOSTING,Information and Communications Technology,Information Communication Technology  ,26.01.2021,16.02.2021,GPC01210000012,107.89
Stockport MBC,Corporate and Support Services,Central Support Costs,SITEGROUND HOSTING,Information and Communications Technology,Information Communication Technology  ,26.01.2021,16.02.2021,GPC01210000013,34.96
Stockport MBC,Corporate and Support Services,Central Support Costs,SITEGROUND HOSTING,Information and Communications Technology,Information Communication Technology  ,26.01.2021,16.02.2021,GPC01210000014,34.96
Stockport MBC,Corporate and Support Services,Central Support Costs,SITEGROUND HOSTING,Information and Communications Technology,Information Communication Technology  ,26.01.2021,16.02.2021,GPC01210000015,20.00
Stockport MBC,Corporate and Support Services,Central Support Costs,SITEGROUND HOSTING,Information and Communications Technology,Information Communication Technology  ,26.01.2021,16.02.2021,GPC01210000016,20.00
Stockport MBC,Corporate and Support Services,Central Support Costs,SITEGROUND HOSTING,Information and Communications Technology,Information Communication Technology  ,26.01.2021,16.02.2021,GPC01210000017,20.00
Stockport MBC,Corporate and Support Services,Central Support Costs,APPLE.COM/BILL,Information and Communications Technology,Information Communication Technology  ,26.01.2021,16.02.2021,GPC01210000018,5.83
Stockport MBC,Corporate and Support Services,Central Support Costs,GRAMMARLY COSJ0GUXU,Publicity and Promotion,Facilities & Management Services  ,16.01.2021,16.02.2021,GPC01210000019,106.15
Stockport MBC,Corporate and Support Services,Central Support Costs,UNAWARDS TICKETS,Office Expenses,Facilities & Management Services  ,14.01.2021,16.02.2021,GPC01210000020,100.00
Stockport MBC,Corporate and Support Services,Central Support Costs,FASTHOSTS INTERNET,Information and Communications Technology,Information Communication Technology  ,09.01.2021,16.02.2021,GPC01210000021,20.00
Stockport MBC,Corporate and Support Services,Central Support Costs,FASTHOSTS INTERNET,Information and Communications Technology,Information Communication Technology  ,05.01.2021,16.02.2021,GPC01210000022,25.00
Stockport MBC,Corporate and Support Services,Central Support Costs,LINKEDIN-599 1719163,Office Expenses,Facilities & Management Services  ,01.01.2021,16.02.2021,GPC01210000023,256.00
Stockport MBC,Corporate and Support Services,Central Services to the public,MPM WRISTBANDS,Furniture and Equipment,Environmental Services Technical Equipment ,28.01.2021,16.02.2021,GPC01210000024,120.06
Stockport MBC,Services to People,Childrens & Educational Services,HALFORDS 0792,Furniture and Equipment,Furniture & Soft Furnishings  ,20.01.2021,16.02.2021,GPC01210000025,1.42
Stockport MBC,Services to People,Childrens & Educational Services,PAYPAL  MES LTD,Fees and Charges,Human Resources Training & Conferences ,11.01.2021,16.02.2021,GPC01210000026,10.00
Stockport MBC,Services to People,Childrens & Educational Services,CVAA UK LTD,Staff Training,Human Resources  ,22.01.2021,16.02.2021,GPC01210000027,45.00
Stockport MBC,Services to People,Childrens & Educational Services,AMAZON.CO.UK MJ38G46J4,Library Equipment,Education Library Books ,06.01.2021,16.02.2021,GPC01210000028,20.45
Stockport MBC,Services to People,Childrens & Educational Services,GOOGLE  ADS8179771860,Office Expenses,Facilities & Management Services  ,02.01.2021,16.02.2021,GPC01210000029,500.00
Stockport MBC,Services to Place,Central Support Costs,AMZNMKTPLACE,Furniture and Equipment,Environmental Services Technical Equipment ,29.01.2021,16.02.2021,GPC01210000030,30.99
Stockport MBC,Services to People,Childrens & Educational Services,SP   TICKIT,Furniture and Equipment,Furniture & Soft Furnishings  ,29.01.2021,16.02.2021,GPC01210000031,59.99
Stockport MBC,Services to People,Childrens & Educational Services,PAYPAL  BRITISHBLIN,Furniture and Equipment,Furniture & Soft Furnishings  ,29.01.2021,16.02.2021,GPC01210000032,12.00
Stockport MBC,Services to People,Childrens & Educational Services,OPTIMA LOW VISIONS SER,Furniture and Equipment,Furniture & Soft Furnishings  ,29.01.2021,16.02.2021,GPC01210000033,70.76
Stockport MBC,Services to People,Childrens & Educational Services,AMAZON PRIME MV0A09CQ4,Furniture and Equipment,Furniture & Soft Furnishings  ,13.01.2021,16.02.2021,GPC01210000034,7.99
Stockport MBC,Services to People,Childrens & Educational Services,WM MORRISONS STORE,Catering Supplies,Catering Food & Beverages ,01.02.2021,16.02.2021,GPC01210000035,2.73
Stockport MBC,Services to People,Childrens & Educational Services,WM MORRISONS STORE,Catering Supplies,Catering Food & Beverages ,26.01.2021,16.02.2021,GPC01210000036,8.45
Stockport MBC,Services to People,Childrens & Educational Services,WM MORRISONS STORE,Catering Supplies,Catering Food & Beverages ,25.01.2021,16.02.2021,GPC01210000037,24.71
Stockport MBC,Services to People,Childrens & Educational Services,SERENATAFLOWERS,Furniture and Equipment,Environmental Services Technical Equipment ,21.01.2021,16.02.2021,GPC01210000038,29.99
Stockport MBC,Services to People,Childrens & Educational Services,WM MORRISONS STORE,Catering Supplies,Catering Food & Beverages ,19.01.2021,16.02.2021,GPC01210000039,6.22
Stockport MBC,Services to People,Childrens & Educational Services,WM MORRISONS STORE,Catering Supplies,Catering Food & Beverages ,18.01.2021,16.02.2021,GPC01210000040,29.65
Stockport MBC,Services to People,Childrens & Educational Services,NESSY LEARNING,Furniture and Equipment,Environmental Services Technical Equipment ,15.01.2021,16.02.2021,GPC01210000041,28.80
Stockport MBC,Services to People,Childrens & Educational Services,CURRYS ONLINE,Furniture and Equipment,Environmental Services Technical Equipment ,14.01.2021,16.02.2021,GPC01210000042,99.98
Stockport MBC,Services to People,Childrens & Educational Services,WM MORRISONS STORE,Catering Supplies,Catering Food & Beverages ,11.01.2021,16.02.2021,GPC01210000043,41.03
Stockport MBC,Services to People,Childrens & Educational Services,WM MORRISONS STORE,Catering Supplies,Catering Food & Beverages ,08.01.2021,16.02.2021,GPC01210000044,56.28
Stockport MBC,Services to People,Childrens & Educational Services,ASDA STORES 4787,Catering Supplies,Catering Food & Beverages ,06.01.2021,16.02.2021,GPC01210000045,12.57
Stockport MBC,Services to People,Childrens & Educational Services,AMZNMKTPLACE,Furniture and Equipment,Environmental Services Technical Equipment ,04.01.2021,16.02.2021,GPC01210000046,18.69
Stockport MBC,Corporate and Support Services,Central Support Costs,MENTIMETER,Information and Communications Technology,Information Communication Technology  ,01.02.2021,16.02.2021,GPC01210000047,90.37
Stockport MBC,Corporate and Support Services,Central Support Costs,AMAZON.CO.UK MV0JQ58E4,Office Expenses,Stationery    ,27.01.2021,16.02.2021,GPC01210000048,11.39
Stockport MBC,Corporate and Support Services,Central Support Costs,WWW.GOV.UK,Legal Fees,Legal Services  ,12.01.2021,16.02.2021,GPC01210000049,1.50
Stockport MBC,Corporate and Support Services,Central Support Costs,WWW.GOV.UK,Legal Fees,Legal Services  ,12.01.2021,16.02.2021,GPC01210000050,1.50
Stockport MBC,Corporate and Support Services,Central Support Costs,WHITEPAPER.CO.UK,Staff Training,Human Resources  ,07.01.2021,16.02.2021,GPC01210000051,300.00
Stockport MBC,Corporate and Support Services,Central Support Costs,DRI EGRESS,Fees and Charges,"Works - Construction, Repair & Maintenance  ",06.01.2021,16.02.2021,GPC01210000052,108.00
Stockport MBC,Services to People,Adult Social Care,ALDI 84 773,Catering Supplies,Catering Food & Beverages ,26.01.2021,16.02.2021,GPC01210000053,19.80
Stockport MBC,Services to People,Adult Social Care,ASDA SUPERSTORE 04145,Furniture and Equipment,Furniture & Soft Furnishings  ,25.01.2021,16.02.2021,GPC01210000054,75.84
Stockport MBC,Services to People,Adult Social Care,ASDA GROCERIES ONLINE,Catering Supplies,Catering Food & Beverages ,30.01.2021,16.02.2021,GPC01210000055,64.49
Stockport MBC,Services to People,Adult Social Care,ASDA GROCERIES ONLINE,Catering Supplies,Catering Food & Beverages ,30.01.2021,16.02.2021,GPC01210000056,0.53
Stockport MBC,Services to People,Adult Social Care,ASDA GROCERIES ONLINE,Catering Supplies,Catering Food & Beverages ,26.01.2021,16.02.2021,GPC01210000057,49.56
Stockport MBC,Services to People,Adult Social Care,ASDA GROCERIES ONLINE,Catering Supplies,Catering Food & Beverages ,26.01.2021,16.02.2021,GPC01210000058,-0.80
Stockport MBC,Services to People,Adult Social Care,ASDA GROCERIES ONLINE,Catering Supplies,Catering Food & Beverages ,15.01.2021,16.02.2021,GPC01210000059,58.46
Stockport MBC,Services to People,Adult Social Care,ASDA GROCERIES ONLINE,Catering Supplies,Catering Food & Beverages ,08.01.2021,16.02.2021,GPC01210000060,56.23
Stockport MBC,Services to People,Adult Social Care,ASDA GROCERIES ONLINE,Catering Supplies,Catering Food & Beverages ,08.01.2021,16.02.2021,GPC01210000061,-0.04
Stockport MBC,Services to People,Childrens & Educational Services,WWW.MARKALLENGROUP.COM,Staff Training,Human Resources  ,26.01.2021,16.02.2021,GPC01210000062,118.80
Stockport MBC,Services to People,Childrens & Educational Services,AMAZON PRIME MV9ND9JF4,Office Expenses,Stationery    ,18.01.2021,16.02.2021,GPC01210000063,7.99
Stockport MBC,Services to People,Childrens & Educational Services,AMZNMKTPLACE,Office Expenses,Stationery    ,15.01.2021,16.02.2021,GPC01210000064,56.00
Stockport MBC,Services to People,Childrens & Educational Services,AMZNMKTPLACE,Office Expenses,Stationery    ,12.01.2021,16.02.2021,GPC01210000065,9.00
Stockport MBC,Services to People,Childrens & Educational Services,AMZNMKTPLACE AMAZON.CO,Office Expenses,Stationery    ,11.01.2021,16.02.2021,GPC01210000066,38.70
Stockport MBC,Services to People,Childrens & Educational Services,AMZNMKTPLACE AMAZON.CO,Office Expenses,Stationery    ,11.01.2021,16.02.2021,GPC01210000067,9.00
Stockport MBC,Services to People,Childrens & Educational Services,AMZNMKTPLACE,Furniture and Equipment,Environmental Services Technical Equipment ,20.01.2021,16.02.2021,GPC01210000068,29.48
Stockport MBC,Services to People,Childrens & Educational Services,HERON FOODS,Catering Supplies,Catering Food & Beverages ,12.01.2021,16.02.2021,GPC01210000069,11.17
Stockport MBC,Services to People,Childrens & Educational Services,POST OFFICE COUNTER,Office Expenses,Mail Services�  ,11.01.2021,16.02.2021,GPC01210000070,3.79
Stockport MBC,Services to People,Childrens & Educational Services,POST OFFICE COUNTER,Office Expenses,Mail Services�  ,07.01.2021,16.02.2021,GPC01210000071,11.84
Stockport MBC,Services to People,Childrens & Educational Services,QUIZLET.COM,Library Equipment,Education Library Books ,14.01.2021,16.02.2021,GPC01210000072,35.99
Stockport MBC,Services to People,Childrens & Educational Services,POST OFFICE COUNTER,Office Expenses,Mail Services�  ,13.01.2021,16.02.2021,GPC01210000073,4.85
Stockport MBC,Services to People,Childrens & Educational Services,POST OFFICE COUNTER,Office Expenses,Mail Services�  ,12.01.2021,16.02.2021,GPC01210000074,20.40
Stockport MBC,Services to People,Childrens & Educational Services,MAGSUBCRIPTIONS COM,Library Equipment,Education Library Books ,12.01.2021,16.02.2021,GPC01210000075,119.00
Stockport MBC,Services to People,Childrens & Educational Services,TEACHIT,Library Equipment,Education Library Books ,09.01.2021,16.02.2021,GPC01210000076,30.00
Stockport MBC,Services to People,Childrens & Educational Services,POST OFFICE COUNTER,Office Expenses,Mail Services�  ,07.01.2021,16.02.2021,GPC01210000077,9.70
Stockport MBC,Services to People,Childrens & Educational Services,B&M 570 - CLARKWAYHYDE,Furniture and Equipment,Furniture & Soft Furnishings  ,28.01.2021,16.02.2021,GPC01210000078,18.49
Stockport MBC,Services to People,Childrens & Educational Services,ASDA STORES 4840,Catering Supplies,Catering Food & Beverages ,21.01.2021,16.02.2021,GPC01210000079,10.35
Stockport MBC,Services to People,Childrens & Educational Services,B&M 570 - CLARKWAYHYDE,Furniture and Equipment,Furniture & Soft Furnishings  ,14.01.2021,16.02.2021,GPC01210000080,10.00
Stockport MBC,Services to People,Childrens & Educational Services,ASDA STORES 4840,Catering Supplies,Catering Food & Beverages ,07.01.2021,16.02.2021,GPC01210000081,14.70
Stockport MBC,Services to People,Childrens & Educational Services,ASDA STORES 4840,Travelling Expenses,Human Resources Travel & Subsistence ,07.01.2021,16.02.2021,GPC01210000082,75.00
Stockport MBC,Services to People,Childrens & Educational Services,HOLIDAY INNS,Care Payments,Social Community Care Supplies & Services  ,29.01.2021,16.02.2021,GPC01210000083,150.00
Stockport MBC,Services to People,Childrens & Educational Services,HOLIDAY INNS,Care Payments,Social Community Care Supplies & Services  ,29.01.2021,16.02.2021,GPC01210000084,54.00
Stockport MBC,Services to People,Childrens & Educational Services,AMAZON PRIME MV03V12U4,Furniture and Equipment,Environmental Services Technical Equipment ,29.01.2021,16.02.2021,GPC01210000085,7.99
Stockport MBC,Services to People,Childrens & Educational Services,ZOOM.US 888-799-9666,Information and Communications Technology,Information Communication Technology  ,26.01.2021,16.02.2021,GPC01210000086,14.39
Stockport MBC,Services to People,Childrens & Educational Services,PREMIER INN44521425,Expenses and Allowances,Human Resources Travel & Subsistence ,25.01.2021,16.02.2021,GPC01210000087,308.50
Stockport MBC,Services to People,Childrens & Educational Services,HOLIDAY INNS,Care Payments,Social Community Care Supplies & Services  ,26.01.2021,16.02.2021,GPC01210000088,50.00
Stockport MBC,Services to People,Childrens & Educational Services,PREMIER INN44521425,Expenses and Allowances,Human Resources Travel & Subsistence ,25.01.2021,16.02.2021,GPC01210000089,147.00
Stockport MBC,Services to People,Childrens & Educational Services,HOLIDAY INNS,Care Payments,Social Community Care Supplies & Services  ,23.01.2021,16.02.2021,GPC01210000090,-195.40
Stockport MBC,Services to People,Childrens & Educational Services,HOLIDAY INNS,Care Payments,Social Community Care Supplies & Services  ,23.01.2021,16.02.2021,GPC01210000091,324.00
Stockport MBC,Services to People,Childrens & Educational Services,PREMIER INN44010600,Care Payments,Social Community Care Supplies & Services  ,22.01.2021,16.02.2021,GPC01210000092,120.50
Stockport MBC,Services to People,Childrens & Educational Services,TRAVELODGE GB0000,Expenses and Allowances,Human Resources Travel & Subsistence ,21.01.2021,16.02.2021,GPC01210000093,270.99
Stockport MBC,Services to People,Childrens & Educational Services,VILLAGE HOTEL HYDE,Expenses and Allowances,Human Resources Travel & Subsistence ,18.01.2021,16.02.2021,GPC01210000094,593.50
Stockport MBC,Services to People,Childrens & Educational Services,PREMIER INN44521425,Expenses and Allowances,Human Resources Travel & Subsistence ,14.01.2021,16.02.2021,GPC01210000095,304.50
Stockport MBC,Services to People,Childrens & Educational Services,HOLIDAY INNS,Care Payments,Social Community Care Supplies & Services  ,15.01.2021,16.02.2021,GPC01210000096,616.00
Stockport MBC,Services to People,Childrens & Educational Services,BRITANNIA HOTEL,Expenses and Allowances,Human Resources Travel & Subsistence ,13.01.2021,16.02.2021,GPC01210000097,60.00
Stockport MBC,Services to People,Childrens & Educational Services,HOLIDAY INNS,Care Payments,Social Community Care Supplies & Services  ,13.01.2021,16.02.2021,GPC01210000098,54.00
Stockport MBC,Services to People,Childrens & Educational Services,VILLAGE HOTEL HYDE,Expenses and Allowances,Human Resources Travel & Subsistence ,11.01.2021,16.02.2021,GPC01210000099,73.50
Stockport MBC,Services to People,Childrens & Educational Services,CURRYS ONLINE,Furniture and Equipment,Environmental Services Technical Equipment ,12.01.2021,16.02.2021,GPC01210000100,199.99
Stockport MBC,Services to People,Childrens & Educational Services,HOLIDAY INNS,Care Payments,Social Community Care Supplies & Services  ,12.01.2021,16.02.2021,GPC01210000101,56.00
Stockport MBC,Services to People,Childrens & Educational Services,HOLIDAY INNS,Care Payments,Social Community Care Supplies & Services  ,11.01.2021,16.02.2021,GPC01210000102,280.00
Stockport MBC,Services to People,Childrens & Educational Services,HOLIDAY INNS,Care Payments,Social Community Care Supplies & Services  ,11.01.2021,16.02.2021,GPC01210000103,56.00
Stockport MBC,Services to People,Childrens & Educational Services,PAYPAL  INSPIRETRAI,Staff Training,Human Resources  ,06.01.2021,16.02.2021,GPC01210000104,42.00
Stockport MBC,Services to People,Childrens & Educational Services,VILLAGE HOTEL HYDE,Expenses and Allowances,Human Resources Travel & Subsistence ,04.01.2021,16.02.2021,GPC01210000105,391.50
Stockport MBC,Services to People,Childrens & Educational Services,HOLIDAY INN EXPRESS RA,Care Payments,Social Community Care Supplies & Services  ,01.02.2021,16.02.2021,GPC01210000106,67.66
Stockport MBC,Services to People,Childrens & Educational Services,TRIVELLES MAYFAIR,Care Payments,Social Community Care Supplies & Services  ,29.01.2021,16.02.2021,GPC01210000107,270.00
Stockport MBC,Services to People,Childrens & Educational Services,1 AND 1 IONOS LTD,Information and Communications Technology,Information Communication Technology  ,27.01.2021,16.02.2021,GPC01210000108,1.20
Stockport MBC,Services to People,Childrens & Educational Services,STOCKPORT MBC DOM,Care Payments,Social Community Care Supplies & Services  ,22.01.2021,16.02.2021,GPC01210000109,86.05
Stockport MBC,Services to People,Childrens & Educational Services,STOCKPORT MBC DOM,Care Payments,Social Community Care Supplies & Services  ,15.01.2021,16.02.2021,GPC01210000110,86.05
Stockport MBC,Services to People,Childrens & Educational Services,CHILDREN FIRST FAMILY,Care Payments,Social Community Care Supplies & Services  ,15.01.2021,16.02.2021,GPC01210000111,"1,225.00"
Stockport MBC,Services to People,Childrens & Educational Services,BOOKDEPOSITORY.COM,Library Equipment,Education Library Books ,14.01.2021,16.02.2021,GPC01210000112,-14.63
Stockport MBC,Services to People,Childrens & Educational Services,ZOOM.US 888-799-9666,Information and Communications Technology,Information Communication Technology  ,11.01.2021,16.02.2021,GPC01210000113,11.99
Stockport MBC,Services to People,Childrens & Educational Services,EB  DEVELOPING SAFEGUA,Fees and Charges,Human Resources Training & Conferences ,12.01.2021,16.02.2021,GPC01210000114,70.00
Stockport MBC,Services to People,Childrens & Educational Services,STOCKPORT MBC DOM,Care Payments,Social Community Care Supplies & Services  ,08.01.2021,16.02.2021,GPC01210000115,398.16
Stockport MBC,Services to People,Childrens & Educational Services,BOING RAPID SECURE LTD,Care Payments,Social Community Care Supplies & Services  ,08.01.2021,16.02.2021,GPC01210000116,216.00
Stockport MBC,Services to People,Childrens & Educational Services,STOCKPORT MBC DOM,Care Payments,Social Community Care Supplies & Services  ,07.01.2021,16.02.2021,GPC01210000117,19.69
Stockport MBC,Services to People,Childrens & Educational Services,STOCKPORT MBC DOM,Care Payments,Social Community Care Supplies & Services  ,07.01.2021,16.02.2021,GPC01210000118,66.36
Stockport MBC,Services to Place,Central Support Costs,SQUARESPACE INC.,Office Expenses,Stationery    ,20.01.2021,16.02.2021,GPC01210000119,216.00
Stockport MBC,Services to People,Childrens & Educational Services,SP   PELVIC PAIN SOLUT,Furniture and Equipment,Environmental Services Technical Equipment ,27.01.2021,16.02.2021,GPC01210000120,102.12
Stockport MBC,Services to People,Childrens & Educational Services,POSTURITE LTD,Furniture and Equipment,Environmental Services Technical Equipment ,22.01.2021,16.02.2021,GPC01210000121,305.94
Stockport MBC,Services to People,Childrens & Educational Services,TESCO STORES 3378,Catering Supplies,Catering Food & Beverages ,01.02.2021,16.02.2021,GPC01210000122,25.24
Stockport MBC,Services to People,Childrens & Educational Services,TESCO STORES 3378,Catering Supplies,Catering Food & Beverages ,25.01.2021,16.02.2021,GPC01210000123,42.53
Stockport MBC,Services to People,Childrens & Educational Services,ARGOS LTD,Care Payments,Social Community Care Supplies & Services  ,20.01.2021,16.02.2021,GPC01210000124,-12.95
Stockport MBC,Services to People,Childrens & Educational Services,ARGOS LTD,Care Payments,Social Community Care Supplies & Services  ,13.01.2021,16.02.2021,GPC01210000125,12.95
Stockport MBC,Services to People,Childrens & Educational Services,NETFLIX.COM,Fees and Charges,Financial Services  ,10.01.2021,16.02.2021,GPC01210000126,11.99
Stockport MBC,Services to People,Childrens & Educational Services,DISNEY PLUS,Fees and Charges,Financial Services  ,03.01.2021,16.02.2021,GPC01210000127,5.99
Stockport MBC,Services to People,Childrens & Educational Services,TEACHIT,Fees and Charges,Financial Services  ,18.01.2021,16.02.2021,GPC01210000128,43.99
Stockport MBC,Services to People,Childrens & Educational Services,TWINKL LIMITED,Fees and Charges,Financial Services  ,07.01.2021,16.02.2021,GPC01210000129,71.16
Stockport MBC,Services to People,Childrens & Educational Services,AMZ FLOORING DIRECT,Furniture and Equipment,Environmental Services Technical Equipment ,29.01.2021,16.02.2021,GPC01210000130,14.16
Stockport MBC,Services to People,Childrens & Educational Services,AMZNMKTPLACE,Furniture and Equipment,Environmental Services Technical Equipment ,26.01.2021,16.02.2021,GPC01210000131,67.65
Stockport MBC,Services to People,Childrens & Educational Services,PIXIMATHS,Furniture and Equipment,Environmental Services Technical Equipment ,26.01.2021,16.02.2021,GPC01210000132,23.50
Stockport MBC,Services to People,Childrens & Educational Services,AMZNMKTPLACE AMAZON.CO,Furniture and Equipment,Environmental Services Technical Equipment ,12.01.2021,16.02.2021,GPC01210000133,19.98
Stockport MBC,Services to People,Childrens & Educational Services,AMZNMKTPLACE,Furniture and Equipment,Environmental Services Technical Equipment ,12.01.2021,16.02.2021,GPC01210000134,32.40
Stockport MBC,Services to People,Childrens & Educational Services,AMZNMKTPLACE,Furniture and Equipment,Environmental Services Technical Equipment ,12.01.2021,16.02.2021,GPC01210000135,20.98
Stockport MBC,Services to People,Childrens & Educational Services,ARGOS LTD,Furniture and Equipment,Environmental Services Technical Equipment ,11.01.2021,16.02.2021,GPC01210000136,89.99
Stockport MBC,Services to People,Childrens & Educational Services,AMZNMKTPLACE,Furniture and Equipment,Environmental Services Technical Equipment ,08.01.2021,16.02.2021,GPC01210000137,11.84
Stockport MBC,Services to People,Childrens & Educational Services,TESCO STORES 3378,Furniture and Equipment,Environmental Services Technical Equipment ,08.01.2021,16.02.2021,GPC01210000138,83.45
Stockport MBC,Services to People,Childrens & Educational Services,AMZNMKTPLACE,Furniture and Equipment,Environmental Services Technical Equipment ,07.01.2021,16.02.2021,GPC01210000139,21.65
Stockport MBC,Services to People,Childrens & Educational Services,ALDI 17 773,Furniture and Equipment,Environmental Services Technical Equipment ,07.01.2021,16.02.2021,GPC01210000140,19.13
Stockport MBC,Services to People,Childrens & Educational Services,AMAZON.CO.UK MJ7ZE3D24,Furniture and Equipment,Environmental Services Technical Equipment ,06.01.2021,16.02.2021,GPC01210000141,8.97
Stockport MBC,Services to People,Adult Social Care,AMZNMKTPLACE,COVID 19,COVID 19,14.01.2021,16.02.2021,GPC01210000142,40.81
Stockport MBC,Services to People,Adult Social Care,AMZNMKTPLACE,COVID 19,COVID 19,11.01.2021,16.02.2021,GPC01210000143,20.80
Stockport MBC,Corporate and Support Services,Cultural & Related Services,AMZNMKTPLACE,Library Equipment,Education Library Books ,20.01.2021,16.02.2021,GPC01210000144,23.98
Stockport MBC,Services to People,Adult Social Care,ALDI 84 773,Catering Supplies,Catering Food & Beverages ,29.01.2021,16.02.2021,GPC01210000145,61.44
Stockport MBC,Services to People,Adult Social Care,ALDI 84 773,Catering Supplies,Catering Food & Beverages ,12.01.2021,16.02.2021,GPC01210000146,63.03
Stockport MBC,Corporate and Support Services,Central Support Costs,AMZNMKTPLACE AMAZON.CO,Furniture and Equipment,Environmental Services Technical Equipment ,11.01.2021,16.02.2021,GPC01210000147,134.97
Stockport MBC,Services to Place,Highways & Transport Services,PREMIER INN44013550,Expenses and Allowances,Human Resources Travel & Subsistence ,28.01.2021,16.02.2021,GPC01210000148,133.33
Stockport MBC,Services to Place,Highways & Transport Services,VILLAGE HOTEL HYDE,Expenses and Allowances,Human Resources Travel & Subsistence ,24.01.2021,16.02.2021,GPC01210000149,-327.00
Stockport MBC,Services to Place,Highways & Transport Services,VILLAGE HOTEL HYDE,Expenses and Allowances,Human Resources Travel & Subsistence ,22.01.2021,16.02.2021,GPC01210000150,327.00
Stockport MBC,Services to Place,Highways & Transport Services,VILLAGE HOTEL HYDE,Expenses and Allowances,Human Resources Travel & Subsistence ,22.01.2021,16.02.2021,GPC01210000151,-327.00
Stockport MBC,Services to Place,Highways & Transport Services,WWW.ISLINGTON.GOV.UK,Staff Training,Human Resources  ,20.01.2021,16.02.2021,GPC01210000152,150.00
Stockport MBC,Services to Place,Highways & Transport Services,VILLAGE HOTEL HYDE,Expenses and Allowances,Human Resources Travel & Subsistence ,18.01.2021,16.02.2021,GPC01210000153,526.00
Stockport MBC,Corporate and Support Services,Central Support Costs,HAYMARKET MEDIA GROUP,Staff Training,Human Resources  ,19.01.2021,16.02.2021,GPC01210000154,119.00
Stockport MBC,Services to Place,Highways & Transport Services,HEALTHCARE + SENIOR...,Expenses and Allowances,Human Resources Training & Conferences ,15.01.2021,16.02.2021,GPC01210000155,30.00
Stockport MBC,Services to Place,Planning Services,WWW.HAYMARKET.COM,Information and Communications Technology,Information Communication Technology  ,13.01.2021,16.02.2021,GPC01210000156,350.00
Stockport MBC,Services to Place,Highways & Transport Services,NAS UK,Staff Training,Human Resources  ,08.01.2021,16.02.2021,GPC01210000157,145.00
